Cogmind - Beta 15 @@@ ROGUE MODE // 2025.09.19 @ 14:38:37 Player: cingulata Result: Destroyed by Striker with Plasma Lance Performance ------------- Evolutions (5) 2500 Regions Visited (12) 2400 Robots Destroyed (157) 785 Value Destroyed (5503) 5503 Prototype IDs (28) 560 Alien Tech Used (0) 0 Bonus (2658) 2658 TOTAL SCORE: 14406 Bonus ------- High Alert Combat Kills 29 Follower Combat Kills 662 Registered with UFD 300 Met Warlord at Base 500 MAIN.C Attacked Warlord 500 Warlord Defense Kills 676 Friendly Fire -9 Cogmind --------- Core Integrity 0/1000 Matter 205/300 Energy 350/350 System Corruption 4% Temperature Cool (90) Movement Core (350) Ox6 Location -5/Warlord Parts ------- > --- POWER (2) -------- Quantum Reactor > --- PROPULSION (6) --- (None) > --- UTILITY (7) ------ (None) > --- WEAPON (2) ------- (None) > --- INVENTORY (5) ---- Light Antimatter Reactor Flexi-carbon Leg Advanced Sensor Array Medium Regenerative Plating Railgun Peak State ------------ > --- POWER ------------ Hybrid Fission Core Compact Particle Reactor > --- PROPULSION ------- Improved Treads Improved Medium Treads Centrium Heavy Treads Centrium Heavy Treads > --- UTILITY ---------- Advanced Heat Sink Huge Storage Unit Enhanced Optical Array Advanced Targeting Computer Improved Transmission Jammer Centrium Medium Armor Plating Medium Regenerative Plating > --- WEAPON ----------- Advanced KE Penetrator Advanced KE Penetrator > --- INVENTORY -------- Quantum Reactor Medium Treads Armored Medium Treads Matter Compressor Structural Scanner Advanced Sensor Array IFF Parser Improved Target Analyzer Improved Particle Charger Improved Transmission Jammer Phase Shifter Centrium Medium Armor Plating Improved Hacking Suite Advanced Hacking Suite Improved System Shield Long-range Tractor Beam Heavy Plasma Cannon KE Penetrator Advanced KE Penetrator Magnetic Acceleration Cannon Mass Driver Enhanced Gauss Cannon Rocket Launcher Remote Datajack Power Maul [Rating: 122] Favorites ----------- Power Compact Particle Reactor Engine Light Ion Engine Power Core Micro Fission Core Reactor Compact Particle Reactor Propulsion Light Treads Treads Light Treads Leg Carbon-fiber Leg Wheel Wheel Hover Unit Improved Hover Unit Utility Huge Storage Unit Device Advanced Sensor Array Storage Huge Storage Unit Processor Enhanced Optical Array Hackware Improved Hacking Suite Protection Layered Medium Armor Plating Weapon KE Penetrator Energy Gun Beamcaster Energy Cannon Heavy Plasma Cannon Ballistic Gun KE Penetrator Ballistic Cannon Enhanced Gauss Cannon Launcher Rocket Launcher Special Weapon Remote Datajack Impact Weapon Power Maul Slashing Weapon Mining Claw Piercing Weapon Spear Special Melee Weapon Datajack Build | -11 -10 -10 -10 -8 -6 -6 -6 -6 -5 -5 -5 -5 ------- Run | Yrd Mat Min Sub Scr Fac Ext Cet Arc Fac Upp Upp War Slots Evolved 10 | . . . . . 8 . . . 2 . . . Power 1 | . . . . . . . . . 1 . . . Propulsion 4 | . . . . . 4 . . . . . . . Utility 5 | . . . . . 4 . . . 1 . . . Weapon . | . . . . . . . . . . . . . Parts Attached 174 | 1 14 6 . 17 27 34 10 8 26 6 3 22 Power 13 | . 1 1 . 2 1 3 2 1 1 . . 1 Engine 3 | . 1 1 . . 1 . . . . . . . Core 7 | . . . . 2 . 3 1 . 1 . . . Reactor 3 | . . . . . . . 1 1 . . . 1 Propulsion 60 | . 5 3 . 5 6 12 2 3 7 3 1 13 Treads 32 | . 1 . . 3 6 9 2 3 1 2 . 5 Leg 14 | . . 1 . . . 1 . . 3 1 . 8 Wheel 13 | . 4 2 . 2 . 1 . . 3 . 1 . Hover 1 | . . . . . . 1 . . . . . . Flight . | . . . . . . . . . . . . . Utility 55 | 1 3 1 . 4 12 8 4 . 14 3 2 3 Device 30 | 1 2 1 . 3 8 2 1 . 6 2 2 2 Storage 1 | . 1 . . . . . . . . . . . Processor 6 | . . . . . 2 2 . . 1 1 . . Hackware 3 | . . . . . 1 1 . . 1 . . . Protection 15 | . . . . 1 1 3 3 . 6 . . 1 Artifact . | . . . . . . . . . . . . . Weapon 46 | . 5 1 . 6 8 11 2 4 4 . . 5 Energy Gun 8 | . 1 . . 2 1 1 . . . . . 3 Energy Cannon 3 | . . . . . . 3 . . . . . . Ballistic Gun 15 | . 1 1 . . 2 5 1 3 2 . . . Ballistic Cannon 9 | . 1 . . . 1 1 1 1 2 . . 2 Launcher 2 | . . . . 2 . . . . . . . . Special Weapon 3 | . 1 . . 1 1 . . . . . . . Impact Weapon 3 | . . . . . 2 1 . . . . . . Slashing Weapon 1 | . 1 . . . . . . . . . . . Piercing Weapon 1 | . . . . . 1 . . . . . . . Special Melee Weapon 1 | . . . . 1 . . . . . . . . Unidentified Prototypes 8 | . . . . 1 . . 5 . . . . 2 Corrupted Parts 5 | . . . . . . . 1 3 . . . 1 System Corruption 19 | . . . . . . . 3 15 . . . 1 Parts Lost 41 | . 2 1 . . . 11 4 . 13 1 1 8 Power 3 | . 1 . . . . 1 . . . . . 1 Propulsion 24 | . 1 1 . . . 8 3 . 8 1 . 2 Utility 8 | . . . . . . 1 1 . 5 . . 1 Weapon 6 | . . . . . . 1 . . . . 1 4 Highest Loss Streak 6 | . 2 1 . . . 3 4 . 6 1 1 4 To Critical Strikes 1 | . . . . . . . 1 . . . . . Average Backups 23 | 6 18 25 25 23 24 24 24 24 24 24 24 23 Power 1 | 1 1 2 2 1 2 2 1 2 1 2 1 . Propulsion 3 | 4 7 8 8 6 2 1 . 1 1 . . 2 Utility 9 | . 2 4 5 9 11 10 10 10 11 9 10 9 Weapon 8 | 1 6 8 9 6 7 9 9 9 8 10 10 10 Tool/Special . | . . . . . . . . . . . . . Unused Backups 79 | 6 5 5 . 18 12 7 3 3 8 1 2 9 Power 13 | 1 1 1 . 2 2 3 . . 1 1 1 . Propulsion 13 | 2 2 2 . 2 2 1 . . . . . 2 Utility 24 | 1 . . . 6 4 . 2 2 6 . . 3 Weapon 28 | 2 2 2 . 8 3 3 1 1 1 . 1 4 Tool/Special 1 | . . . . . 1 . . . . . . . Average Slot Usage (%) 94 | . 99 99 100 99 92 93 92 86 88 99 100 93 Engine 3 | . 13 14 14 7 5 1 . . . . . . Core 3 | . . . . 7 . 4 1 . 4 5 5 3 Reactor 2 | . . . . . . . 4 5 5 5 5 6 Treads 18 | . 7 . . 2 38 28 33 28 18 16 17 13 Leg 2 | . . . . . . . . . 2 5 10 9 Wheel 10 | . 19 27 28 25 . 5 . . 2 10 5 7 Device 14 | . 14 14 14 8 18 18 10 12 16 13 12 15 Storage 8 | . 14 14 14 13 6 6 6 6 5 5 5 4 Processor 6 | . . . . . 5 8 13 13 10 11 11 10 Protection 4 | . . . . 5 . 3 8 6 5 8 9 5 Energy Gun 6 | . 13 14 14 13 8 6 2 . . . . . Energy Cannon 1 | . . . . . . 2 3 . 2 5 . . Ballistic Gun 3 | . 7 13 14 . . 1 1 9 5 5 8 2 Ballistic Cannon 1 | . 5 . . . . . 2 1 1 . 1 4 Special Melee Weapon 1 | . . . . 9 . . . . . . . . Peak Build Rating 122 | 7 10 11 11 26 52 60 88 99 122 96 100 109 Average Rating 57 | 6 8 10 11 16 47 53 77 91 105 92 97 90 On Entrance 47 | 6 7 10 11 11 22 50 59 88 99 74 92 91 Naked Turns 6 | . . . . . . . . . . . . 6 Heaviest Build 146 | 12 90 89 89 102 114 132 126 125 132 132 127 146 Greatest Support 218 | 20 26 26 20 40 120 144 184 206 218 82 82 182 Greatest Overweight (x) 29 | . 8 8 4 29 9 9 1 2 12 7 7 26 Average Overweight (x) 2 | . 4 3 4 4 . 3 . . . 3 5 3 Largest Inventory Capacity 25 | 8 25 25 25 25 25 25 25 25 25 25 25 25 Average Capacity 24 | 8 24 25 25 24 25 25 25 25 25 25 25 24 Most Carried 25 | 8 25 25 25 25 25 25 25 25 25 25 25 25 Average Carried 24 | 6 18 24 25 23 24 24 24 24 24 24 24 23 Final Capacity 25 | 8 25 25 25 25 25 25 25 25 25 25 25 5 Final Carried 25 | 8 25 25 25 25 25 25 25 25 23 25 25 5 Class Distribution -------------------- 55% | Scavenger-Mutant 22% | Mutant 13% | Scavenger-Skirmisher 5% | Derelict-Mutant 3% | Commander-Mutant Dominant Class ---------------- Mutant | -10/Materials Scavenger-Mutant | -10/Mines Scavenger-Mutant | -10/Subcaves Mutant | -8/Scraptown Scavenger-Mutant | -6/Factory Scavenger-Mutant | -6/Extension Scavenger-Mutant | -6/Cetus Scavenger-Mutant | -6/Archives Scavenger-Mutant | -5/Factory Scavenger-Skirmisher | -5/Upper Caves Scavenger-Skirmisher | -5/Upper Caves Scavenger-Mutant | -5/Warlord Resources | -11 -10 -10 -10 -8 -6 -6 -6 -6 -5 -5 -5 -5 ----------- Run | Yrd Mat Min Sub Scr Fac Ext Cet Arc Fac Upp Upp War Matter Collected 8160 | 219 636 166 . 350 980 1137 683 577 2138 251 326 697 Remotely 910 | . . . . . . . . . 371 . 237 302 Salvage Created 7090 | 85 712 157 . . 998 1595 165 296 2260 308 213 301 Parts 289 | 9 51 20 . . 45 29 7 15 67 9 21 16 Haulers Intercepted 8 | . 2 . . . 1 4 . . 1 . . . Recyclers Shooed 13 | . . . . . 6 . . . 7 . . . Parts Field Recycled . | . . . . . . . . . . . . . Retrieved Matter . | . . . . . . . . . . . . . Parts Self-Destructed 24 | . . . . . . . . . . 7 17 . Prevented . | . . . . . . . . . . . . . Kills | -11 -10 -10 -10 -8 -6 -6 -6 -6 -5 -5 -5 -5 ------- Run | Yrd Mat Min Sub Scr Fac Ext Cet Arc Fac Upp Upp War Combat Hostiles Destroyed 93 | . 17 1 . . 14 16 3 4 21 1 10 6 Melee 3 | . . . . . . 3 . . . . . . Guns 43 | . 13 1 . . 11 4 . . 12 1 1 . Cannons 24 | . 4 . . . . 2 3 4 5 . 2 4 AOE 19 | . . . . . 3 4 . . 3 . 7 2 Classes Destroyed 16 | 2 6 . . . 2 1 . 1 1 . 1 2 Worker 13 | . 1 1 . . 3 2 . . 6 . . . Builder 7 | . 1 1 . . . . . . 5 . . . Tunneler 9 | 2 . 6 . . . . . . 1 . . . Hauler 8 | . 2 . . . 1 4 . . 1 . . . Recycler 15 | 1 1 . . . 3 2 . . 8 . . . Operator 8 | . . . . . . . . 7 1 . . . Watcher 4 | . 1 . . . . 1 . . 2 . . . Swarmer 21 | . 4 1 . . 6 . . . 2 . 8 . Saboteur 1 | . . . . . . . . . . . . 1 Grunt 29 | . 13 . . . . 10 . . 3 . . 3 Duelist 1 | . . . . . . . . . 1 . . . Sentry 15 | . . . . . 3 5 . 4 3 . . . Hunter 3 | . . . . . . 1 . . 2 . . . Programmer 19 | . . . . . 5 . . . 10 1 2 1 Behemoth 1 | . . . . . . . . . . . . 1 Cetus Guard 3 | . . . . . . . 3 . . . . . Samaritan 1 | . . . . . . . . . . . 1 . Best Kill Streak 5 | 2 3 2 . . 4 3 1 2 5 1 4 2 Combat Bots Only 4 | . 3 1 . . 3 3 1 1 3 1 4 2 Max Kills in Single Turn 3 | 1 1 1 . . 2 1 1 1 3 1 3 2 Gunslinging . | . . . . . . . . . . . . . Exploded 3 | . . . . . 2 1 . . 1 . 3 2 Melee 1 | . . . . . . 1 . . . . . . Uniques/NPCs Destroyed . | . . . . . . . . . . . . . Combat | -11 -10 -10 -10 -8 -6 -6 -6 -6 -5 -5 -5 -5 -------- Run | Yrd Mat Min Sub Scr Fac Ext Cet Arc Fac Upp Upp War Hostile Shots Fired 1052 | . 74 14 . . 126 209 40 26 315 4 49 195 Missed 274 | . 21 3 . . 45 55 15 4 47 2 16 66 Hits 778 | . 53 11 . . 81 154 25 22 268 2 33 129 Melee 15 | . . . . . . . . . 4 . . 11 Projectile 763 | . 53 11 . . 81 154 25 22 264 2 33 118 Critical Strikes 40 | . . . . . 1 4 5 2 19 . . 9 Part Disruptions 4 | . . . . . 2 . . . 2 . . . Damage Taken 13985 | . 552 107 . . 994 2068 510 515 5863 36 599 2741 Core 1562 | . 137 22 . . 38 274 37 23 431 17 32 551 Absorbed by Shields 713 | . . . . . 31 125 176 . . 6 126 249 Reduced by Siege Mode 356 | . . . . . . . . 6 350 . . . Regen/Repaired (Parts) 1536 | . . . . 231 10 . 115 120 523 . . 537 Core Remaining (%) 64 | 100 . . . 36 . . . 56 . . . . Volleys Fired 492 | 9 75 20 . . 54 59 25 34 137 25 17 37 Largest 2 | 2 2 2 . . 2 2 2 2 2 2 2 2 Hottest 170 | 70 100 95 . . 155 170 165 129 134 123 137 96 Shots Fired 889 | 18 144 40 . . 99 98 46 69 253 29 30 63 Gun 547 | 18 109 39 . . 88 60 24 33 156 2 13 5 Cannon 295 | . 29 1 . . 2 26 22 36 93 27 12 47 Launcher 28 | . . . . . 4 7 . . 3 . 5 9 Special 19 | . 6 . . . 5 5 . . 1 . . 2 Kinetic 505 | 9 69 20 . . 13 22 42 60 198 2 23 47 Thermal 338 | 9 75 20 . . 77 64 4 9 51 27 2 . Explosive 28 | . . . . . 4 7 . . 3 . 5 9 Electromagnetic . | . . . . . . . . . . . . . Entropic 5 | . . . . . . . . . . . . 5 Robot Hit Streak 33 | 3 15 12 . . 13 18 33 20 26 5 7 6 Robot Miss Streak 6 | 2 5 2 . . 6 6 4 2 4 1 3 5 Penetration Max 1 | . . . . . . 1 1 . 1 . . 1 Secondary Targets 3 | . 2 . . . 1 . . . . . . . Max Gunslinging Chain 1 | . 1 . . . 1 . . . . . . . Shots Hit Robots 683 | 10 88 27 . 45 80 88 42 52 199 9 15 28 Core Hits 317 | 4 37 9 . . 49 61 13 22 65 5 16 36 Critical Kills 10 | 1 . . . . 1 1 . . 4 1 . 2 Critical Parts Destroyed 27 | . . . . . . 10 3 . 10 . . 4 Critical Strikes 60 | 1 5 1 . . 5 13 5 1 19 1 2 7 Burn 10 | . 5 1 . . 3 1 . . . . . . Meltdown 2 | . . . . . . . . . 2 . . . Destroy 28 | 1 . . . . 1 4 5 . 9 1 . 7 Blast 8 | . . . . . . . . 1 5 . 2 . Smash 11 | . . . . . . 8 . . 3 . . . Impale 1 | . . . . . 1 . . . . . . . Melee Attacks 127 | . 2 . . 45 31 21 . . 28 . . . Impact 57 | . . . . . 8 21 . . 28 . . . Slashing 2 | . 2 . . . . . . . . . . . Piercing 23 | . . . . . 23 . . . . . . . Sneak Attacks 67 | . 1 . . 44 5 7 . . 10 . . . Combat Hostiles . | . . . . . . . . . . . . . Follow-up Attacks . | . . . . . . . . . . . . . Damage Inflicted 20022 | 106 1147 410 . . 2280 3112 761 1693 7848 272 844 1549 Guns 8542 | 106 791 391 . . 1570 993 181 544 3610 51 225 80 Cannons 5169 | . 306 19 . . 18 408 580 904 2067 221 203 443 Explosions 3357 | . . . . . 262 606 . . 1047 . 416 1026 Melee 2702 | . 50 . . . 430 1105 . . 1117 . . . Ramming 252 | . . . . . . . . 245 7 . . . Kinetic 8745 | 44 540 170 . . 197 284 725 1270 4593 51 428 443 Thermal 4886 | 62 557 240 . . 1391 1117 36 178 1084 221 . . Explosive 3317 | . . . . . 262 606 . . 1007 . 416 1026 Electromagnetic 40 | . . . . . . . . . 40 . . . Impact 2480 | . . . . . 258 1105 . . 1117 . . . Slashing 50 | . 50 . . . . . . . . . . . Piercing 172 | . . . . . 172 . . . . . . . Entropic 80 | . . . . . . . . . . . . 80 Highest Corruption 26 | . . . . . 8 8 11 26 14 5 10 10 Average Corruption 7 | . . . . . 4 8 9 17 4 5 6 4 Corruption Purged 13 | . . . . . . . . . 13 . . . Corruption Blocked . | . . . . . . . . . . . . . Effects 281 | . . . . . 27 86 20 36 44 21 33 14 Message Errors 71 | . . . . . 6 26 4 9 10 4 8 4 Matter Fused 65 | . . . . . 2 23 5 5 13 5 7 5 Heat Flow Errors 35 | . . . . . 1 12 2 8 . 3 7 2 Energy Discharges 30 | . . . . . 4 7 2 2 6 3 6 . Parts Rejected 8 | . . . . . 1 1 3 1 2 . . . Parts Fused 4 | . . . . . 1 1 . . 2 . . . Data Loss (minor) 34 | . . . . . 6 9 1 6 5 3 3 1 Data Loss (major) 12 | . . . . . 1 4 . 2 3 . 1 1 Misfires 14 | . . . . . 5 2 . 2 1 2 1 1 Alerts 2 | . . . . . . . . 1 . 1 . . Misdirections 2 | . . . . . . . 2 . . . . . Weapon Failures 4 | . . . . . . 1 1 . 2 . . . Overload Shots . | . . . . . . . . . . . . . Overflow Damage 1637 | . . . . . 82 728 . . 755 47 7 18 Projectiles 117 | . . . . . . 8 . . 55 47 7 . Explosions 138 | . . . . . . . . . 120 . . 18 Melee 1382 | . . . . . 82 720 . . 580 . . . Knockbacks 39 | . 3 1 . . 2 4 . 5 19 . 2 3 Impact 13 | . . . . . 1 3 . 4 5 . . . Kinetic 24 | . 3 1 . . 1 . . 1 13 . 2 3 Secondary 2 | . . . . . . 1 . . 1 . . . Self-Inflicted Damage 440 | . . . . . . . . . 311 . 72 57 Shots 9 | . . . . . . . . . 5 . 2 2 Rammed 14 | . . . . . 1 . . 12 1 . . . Targets Rammed 18 | . . . . . 1 . . 16 1 . . . Kicked . | . . . . . . . . . . . . . Crushed 4 | . . . . . . . . 4 . . . . Highest Temperature 550 | 80 136 72 . . 406 550 69 371 381 441 248 151 Average Temperature 97 | 40 32 19 . . 93 170 43 130 110 73 86 59 Received Heat Transfer 2449 | . 228 9 . . 64 773 . 135 747 . . 493 Effects 30 | . . . . . 2 17 . 1 9 1 . . Shutdowns 5 | . . . . . 1 3 . . 1 . . . Energy Bleed 3 | . . . . . . 2 . . 1 . . . Interference 15 | . . . . . . 7 . . 7 1 . . Matter Decay 2 | . . . . . 1 . . 1 . . . . Short Circuit 1 | . . . . . . 1 . . . . . . Damage (minor) 2 | . . . . . . 2 . . . . . . Damage (major) 1 | . . . . . . 1 . . . . . . Damage (core) 1 | . . . . . . 1 . . . . . . Siege Activations 10 | . . . . . . . . 3 7 . . . Total Turns 308 | . . . . . . . . 47 261 . . . Longest Duration 59 | . . . . . . . . 18 59 . . . Martial Activations . | . . . . . . . . . . . . . Shielding Activations . | . . . . . . . . . . . . . Robots Disrupted . | . . . . . . . . . . . . . Combat Hostiles . | . . . . . . . . . . . . . Robots Corrupted 11 | . . . . . . 6 . . 5 . . . Combat Hostiles 2 | . . . . . . 2 . . . . . . Parts Fried 16 | . . . . . . 4 . . 12 . . . Impact Corruptions 42 | . . . . . 2 20 . . 20 . . . Robots Melted 3 | . . . . . . 1 . . 2 . . . Combat Hostiles 2 | . . . . . . 1 . . 1 . . . Parts Melted 33 | . 5 1 . . 15 6 . . 6 . . . Heat Transferred 9866 | 185 1961 629 . . 2771 2073 75 222 1600 350 . . Parts Sabotaged 6 | . . . . . . . . . . . . 6 Parts Stolen . | . . . . . . . . . . . . . Parts Stripped . | . . . . . . . . . . . . . Power Chain Reactions . | . . . . . . . . . . . . . Alert | -11 -10 -10 -10 -8 -6 -6 -6 -6 -5 -5 -5 -5 ------- Run | Yrd Mat Min Sub Scr Fac Ext Cet Arc Fac Upp Upp War Maximum Alert Level 2 | . . . . . . 2 1 . 2 . . . Low Security (%) 88 | 100 100 100 . . 100 78 91 100 71 . . . Level 1 5 | . . . . . . 8 8 . 12 . . . Level 2 6 | . . . . . . 13 . . 15 . . . Level 3 . | . . . . . . . . . . . . . Level 4 . | . . . . . . . . . . . . . Level 5 . | . . . . . . . . . . . . . High Security . | . . . . . . . . . . . . . Max Security . | . . . . . . . . . . . . . Peak Influence 569 | 10 128 53 . . 173 497 272 54 569 . . . Initial 272 | . . 15 . . . 70 272 . . . . . Average 83 | 1 60 5 . . 63 105 89 9 143 . . . Influence Increases 4156 | 15 557 113 . . 556 1115 92 179 1089 45 230 165 Destroy 0b10 Robot/C 2180 | . 340 60 . . 300 560 80 80 420 20 200 120 Destroy 0b10 Robot/NC 345 | 15 30 40 . . 35 55 . 35 120 15 . . Destroy Leader 418 | . 96 10 . . 92 74 . . 106 10 30 . Allied During Kill 255 | . . 3 . . 5 241 6 . . . . . Successful Hack 103 | . 21 . . . 24 30 3 . 25 . . . Disable Machine 255 | . . . . . 75 30 . 60 90 . . . Destroy Structure 360 | . 10 . . . 25 50 3 4 268 . . . Partial Spotted 15 | . . . . . . . . . 15 . . . Lose Combat Pursuer 225 | . 60 . . . . 75 . . 45 . . 45 Influence Decreases 4145 | 15 517 128 25 . 411 773 579 179 520 596 198 204 Entered New Map 593 | . . 25 13 . . 75 215 . . 211 4 50 Time Decay 2844 | 15 405 93 12 . 391 502 204 179 390 385 194 74 Lost Part 357 | . 20 10 . . . 77 40 . 130 . . 80 Lost Ally 259 | . . . . . 20 119 120 . . . . . Purge Threat 92 | . 92 . . . . . . . . . . . Squads Dispatched 22 | . 7 . . . 6 3 . . 6 . . . Investigation 6 | . 4 . . . 1 1 . . . . . . Extermination 10 | . . . . . 5 . . . 5 . . . Reinforcement 5 | . 3 . . . . 2 . . . . . . Assault 1 | . . . . . . . . . 1 . . . Garrison . | . . . . . . . . . . . . . Intercept . | . . . . . . . . . . . . . Searches Triggered . | . . . . . . . . . . . . . Construction Impeded 1 | . . . . . . 1 . . . . . . Haulers Reinforced . | . . . . . . . . . . . . . Active Scanning Responses . | . . . . . . . . . . . . . Cargo Convoy Interrupts . | . . . . . . . . . . . . . Stealth | -11 -10 -10 -10 -8 -6 -6 -6 -6 -5 -5 -5 -5 --------- Run | Yrd Mat Min Sub Scr Fac Ext Cet Arc Fac Upp Upp War Distress Signals 3 | . . . . . . 1 1 . . . . 1 Communications Jammed 17 | . . . . . . 1 . . 16 . . . Distress Signals 16 | . . . . . . 1 . . 15 . . . Times Spotted 228 | . 25 5 . . 21 30 6 24 35 1 5 76 Peak Tracking Total 19 | . 3 3 . . 4 5 5 2 6 1 2 19 Tactical Retreats 12 | . 3 . . . . 5 . . 2 . . 2 Traps | -11 -10 -10 -10 -8 -6 -6 -6 -6 -5 -5 -5 -5 ------- Run | Yrd Mat Min Sub Scr Fac Ext Cet Arc Fac Upp Upp War Traps Triggered 9 | . 7 . . . 1 . . . 1 . . . Indirectly . | . . . . . . . . . . . . . Trap Hack Attempts . | . . . . . . . . . . . . . Triggered . | . . . . . . . . . . . . . Disarmed . | . . . . . . . . . . . . . Reprogrammed . | . . . . . . . . . . . . . Reused . | . . . . . . . . . . . . . Traps Extracted . | . . . . . . . . . . . . . Installed 1 | . . 1 . . . . . . . . . . Triggered . | . . . . . . . . . . . . . Machines | -11 -10 -10 -10 -8 -6 -6 -6 -6 -5 -5 -5 -5 ---------- Run | Yrd Mat Min Sub Scr Fac Ext Cet Arc Fac Upp Upp War Machines Disabled 19 | . . . . . 5 4 . 4 6 . . . Max in Single Turn 3 | . . . . . 2 . . 1 3 . . . Garrison Access 2 | . . . . . 2 . . . . . . . Energy Cycler 1 | . . . . . . 1 . . . . . . Machines Repaired . | . . . . . . . . . . . . . Machines Dismantled . | . . . . . . . . . . . . . Machines Sabotaged . | . . . . . . . . . . . . . Overloaded Fab Kills . | . . . . . . . . . . . . . Hacking | -11 -10 -10 -10 -8 -6 -6 -6 -6 -5 -5 -5 -5 --------- Run | Yrd Mat Min Sub Scr Fac Ext Cet Arc Fac Upp Upp War Machines Accessed 47 | . 4 . . 6 11 7 2 . 9 . 1 7 Terminals 22 | . 4 . . . 4 6 2 . 6 . . . Fabricators 2 | . . . . . 1 . . . 1 . . . Repair Stations . | . . . . . . . . . . . . . Recycling Units 4 | . . . . . 3 1 . . . . . . Scanalyzers 2 | . . . . . 1 . . . 1 . . . Garrison Access 3 | . . . . . 2 . . . 1 . . . Total Hacks 135 | . 12 . . 41 20 11 6 . 24 . 1 20 Successful 95 | . 7 . . 41 10 6 2 . 8 . 1 20 Failed 40 | . 5 . . . 10 5 4 . 16 . . . Catastrophic 9 | . . . . . . 3 1 . 5 . . . Database Lockouts . | . . . . . . . . . . . . . Manual 36 | . 7 . . . 13 3 . . 13 . . . Terminals 54 | . 12 . . . 11 9 6 . 16 . . . Fabricators 5 | . . . . . 2 . . . 3 . . . Repair Stations . | . . . . . . . . . . . . . Recycling Units 6 | . . . . . 4 2 . . . . . . Scanalyzers 3 | . . . . . 1 . . . 2 . . . Garrison Access 5 | . . . . . 2 . . . 3 . . . Terminal Hacks 79 | . 6 . . 41 1 4 2 . 4 . 1 20 Record 57 | . . . . 40 . . 2 . . . . 15 Part Schematic 1 | . . . . . . . . . 1 . . . Robot Analysis 2 | . 2 . . . . . . . . . . . Prototype ID Bank 6 | . 1 . . . . . . . 1 . . 4 Open Door 6 | . . . . . . 4 . . . . 1 1 Open DSF 1 | . . . . . 1 . . . . . . . Branch Access Points 1 | . . . . . . . . . 1 . . . Unreport Threat 1 | . 1 . . . . . . . . . . . Locate Traps 1 | . 1 . . . . . . . . . . . Hauler Manifests 1 | . . . . . . . . . 1 . . . Zone Layout 1 | . 1 . . . . . . . . . . . Proto ID Catalog 1 | . . . . 1 . . . . . . . . Fabricator Hacks 2 | . . . . . 1 . . . 1 . . . Network Status 2 | . . . . . 1 . . . 1 . . . Repair Station Hacks . | . . . . . . . . . . . . . Recycling Unit Hacks 2 | . . . . . 1 1 . . . . . . Retrieve Components 2 | . . . . . 1 1 . . . . . . Scanalyzer 1 | . . . . . . . . . 1 . . . Insert Component 1 | . . . . . . . . . 1 . . . Garrison Access Hacks 3 | . . . . . 2 . . . 1 . . . Unlock Access 1 | . . . . . . . . . 1 . . . Seal Access 2 | . . . . . 2 . . . . . . . Unauthorized Hacks 8 | . 1 . . . 5 1 . . 1 . . . Terminals 5 | . 1 . . . 2 1 . . 1 . . . Assimilate 1 | . . . . . 1 . . . . . . . Botnet 4 | . 1 . . . 1 1 . . 1 . . . Fabricators 1 | . . . . . 1 . . . . . . . Haulers 1 | . . . . . 1 . . . . . . . Repair Stations . | . . . . . . . . . . . . . Recycling Units 1 | . . . . . 1 . . . . . . . Mask 1 | . . . . . 1 . . . . . . . Scanalyzers 1 | . . . . . 1 . . . . . . . Researchers 1 | . . . . . 1 . . . . . . . Garrison Access . | . . . . . . . . . . . . . Data Cores Recovered 1 | . . . . . . . . . 1 . . . Used . | . . . . . . . . . . . . . Hacking Detections 25 | . 4 . . . 6 6 2 . 7 . . . Full Trace Events 1 | . . . . . . 1 . . . . . . Feedback Events . | . . . . . . . . . . . . . Feedback Blocked . | . . . . . . . . . . . . . Robot Schematics Acquired . | . . . . . . . . . . . . . Robots Built . | . . . . . . . . . . . . . Authchips . | . . . . . . . . . . . . . Time . | . . . . . . . . . . . . . Total Robot Build Rating . | . . . . . . . . . . . . . Part Schematics Acquired 1 | . . . . . . . . . 1 . . . Parts Built . | . . . . . . . . . . . . . Authchips . | . . . . . . . . . . . . . Time . | . . . . . . . . . . . . . Total Part Build Rating . | . . . . . . . . . . . . . Parts Repaired . | . . . . . . . . . . . . . Time . | . . . . . . . . . . . . . Parts Recycled . | . . . . . . . . . . . . . Recycled Matter . | . . . . . . . . . . . . . Retrieved Matter . | . . . . . . . . . . . . . Retrieved Components 20 | . . . . . 10 10 . . . . . . Parts Scanalyzed 1 | . . . . . . . . . 1 . . . Part Schematics Acquired . | . . . . . . . . . . . . . Parts Damaged 1 | . . . . . . . . . 1 . . . Bothacking | -11 -10 -10 -10 -8 -6 -6 -6 -6 -5 -5 -5 -5 ------------ Run | Yrd Mat Min Sub Scr Fac Ext Cet Arc Fac Upp Upp War Used RIF Installer . | . . . . . . . . . . . . . Robots Hacked 49 | . . . . 43 2 1 . . 1 . . 2 Non-combat 15 | . . . . 12 2 . . . 1 . . . Combat 33 | . . . . 31 . . . . . . . 2 Robot Hacks Applied 50 | . . . . 44 3 . . . 1 . . 2 parse_system 47 | . . . . 44 1 . . . . . . 2 find_chute 2 | . . . . . 1 . . . 1 . . . check_alert 1 | . . . . . 1 . . . . . . . Manual 1 | . . . . . . 1 . . . . . . Relay Couplers Released . | . . . . . . . . . . . . . Fabnet Peak Effective % . | . . . . . . . . . . . . . Robots Rewired 14 | . . . . . . 14 . . . . . . Allies Hacked 1 | . . . . . 1 . . . . . . . Hacks Repelled . | . . . . . . . . . . . . . Allies | -11 -10 -10 -10 -8 -6 -6 -6 -6 -5 -5 -5 -5 -------- Run | Yrd Mat Min Sub Scr Fac Ext Cet Arc Fac Upp Upp War Total Allies 22 | . . 1 . . 1 20 . . . . . . Largest Group 12 | . . 1 1 1 1 12 6 . . . . . Highest-Rated Group 454 | . . 31 31 31 31 454 281 . . . . . Highest-Rated Ally 159 | . . 31 31 31 31 159 159 . . . . . Total Orders 4 | . . . . . . 3 1 . . . . . ROAM 2 | . . . . . . 1 1 . . . . . FOLLOW 2 | . . . . . . 2 . . . . . . Ally Attacks 117 | . . 5 . . 6 92 14 . . . . . Total Damage 2504 | . . 83 . . 118 1966 337 . . . . . Kills 19 | . . 2 . . 1 15 1 . . . . . Allies Corrupted . | . . . . . . . . . . . . . Allies Melted 1 | . . . . . . 1 . . . . . . Intel | -11 -10 -10 -10 -8 -6 -6 -6 -6 -5 -5 -5 -5 ------- Run | Yrd Mat Min Sub Scr Fac Ext Cet Arc Fac Upp Upp War Active Infowar (turns) 17441 | 45 758 818 127 2409 2862 2559 497 886 2715 1063 1105 1597 Optics 9322 | . . . . . 577 882 497 886 2715 1063 1105 1597 Sensors 8211 | . . . . 65 2622 718 . . 1934 1004 1073 795 IFF 1612 | . . . . . . 1521 . 90 1 . . . Structural 495 | . 38 . . . . . . . 457 . . . Seismic 4964 | 45 720 818 127 2344 910 . . . . . . . Jamming 7827 | . . . . . 1774 2312 . 46 2550 1006 139 . Robot Analysis Total 2 | . 2 . . . . . . . . . . . Derelict Logs Recovered 4 | . . . 1 . . . . . . 2 1 . Drone Launches . | . . . . . . . . . . . . . Drone Recoveries . | . . . . . . . . . . . . . Exploration | -11 -10 -10 -10 -8 -6 -6 -6 -6 -5 -5 -5 -5 ------------- Run | Yrd Mat Min Sub Scr Fac Ext Cet Arc Fac Upp Upp War Turns Passed 19886 | 67 1211 830 127 3907 2995 2735 497 886 2758 1063 1105 1705 Spaces Moved 9633 | 23 483 504 84 2482 1325 1105 218 394 1157 575 437 846 Core 18 | . . . . 1 . . . . . . . 17 Treads 3468 | . 1 . . 78 1204 509 218 394 919 22 52 71 Legs 161 | 23 9 . . . . . . . 5 . . 124 Wheels 5986 | . 473 504 84 2403 121 596 . . 233 553 385 634 Hover . | . . . . . . . . . . . . . Flight . | . . . . . . . . . . . . . Fastest Speed 50 | 120 120 135 140 85 156 145 160 160 123 150 150 50 Average Speed 161 | 120 158 140 140 149 171 173 164 163 157 158 203 167 Slowest Speed 1500 | 120 480 200 140 1500 240 560 240 320 680 490 246 1350 Overloaded Moves . | . . . . . . . . . . . . . Propulsion Burnouts . | . . . . . . . . . . . . . Robots Hopped . | . . . . . . . . . . . . . Potential Cave-ins 13 | . . . . . . . . . . . . 13 Cave-ins Triggered 1 | . . . . . . . . . . . . 1 Exploration Rate (%) 58 | 4 78 64 6 93 28 86 67 99 24 64 64 79 Regions Visited 12 Branch Regions 9 Pre-discovered Areas 4 | . . 1 1 . . . . . . 1 . 1 Known Exits Taken 4 | . . . . . 1 . . . 1 1 1 . Unknown Exits Taken 8 | 1 1 1 1 1 . 1 1 1 . . . . Scrap Searched 11 | . . 3 . 6 . . . . . 1 1 . Spaces Dug 56 | . 7 . . . 14 . . . 30 5 . . Terrain Destroyed 381 | . 7 . . . 23 50 2 4 166 20 35 74 Melee 29 | . 1 . . . 14 . . . 14 . . . Projectile 145 | . 6 . . . 1 13 2 4 64 20 14 21 AOE 207 | . . . . . 8 37 . . 88 . 21 53 Terrain Rammed . | . . . . . . . . . . . . . Walls Destroyed . | . . . . . . . . . . . . . Machines Disabled . | . . . . . . . . . . . . . Actions | -11 -10 -10 -10 -8 -6 -6 -6 -6 -5 -5 -5 -5 --------- Run | Yrd Mat Min Sub Scr Fac Ext Cet Arc Fac Upp Upp War Total 12881 | 45 773 593 93 2682 1907 1756 308 560 1776 700 623 1065 Wait 1531 | 11 149 38 10 1 354 285 14 51 308 81 149 80 Move 9620 | 22 482 503 83 2481 1324 1104 217 393 1156 574 436 845 Hop . | . . . . . . . . . . . . . Pick Up 266 | 2 26 9 . 73 39 25 14 12 33 8 5 20 Fast Attach 72 | 1 4 . . 14 4 11 8 12 7 1 . 10 Attach 57 | . 2 2 . 3 10 7 4 6 13 4 1 5 Detach 13 | . . . . 2 3 1 . 1 3 . . 3 Swap 292 | . 24 8 . 12 53 65 12 11 55 6 11 35 Drop 226 | . 9 12 . 51 34 22 14 24 27 1 4 28 Fire 492 | 9 75 20 . . 54 59 25 34 137 25 17 37 Melee 127 | . 2 . . 45 31 21 . . 28 . . . Ram . | . . . . . . . . . . . . . Kick . | . . . . . . . . . . . . . Crush 18 | . . . . . 1 . . 16 1 . . . Escape Stasis 9 | . . . . . . . . . 8 . . 1 Rewire 157 | . . . . . . 156 . . . . . 1 Trap 1 | . . 1 . . . . . . . . . . Miscellaneous . | . . . . . . . . . . . . . Route ------- -11/Scrapyard -10/Materials (discovered 5 exits: [*Mat x2] / [*Min x2] / [*Sub]) -10/Mines -10/Subcaves -8/Scraptown (discovered 2 exits: *Fac x2) -6/Factory -6/Extension (discovered 2 exits: *Fac / *Cet) -6/Cetus -6/Archives (discovered 3 exits: *Fac / [*Hub x2]) -5/Factory (discovered 3 exits: *Upp x2 / Gar) -5/Upper Caves -5/Upper Caves (discovered 2 exits: [*Fac] / *War) -5/Warlord (discovered 1 exit: [*Pro]) History --------- Turn | Location | Event 16 | -11/Scrapyard | Discovered new exit (range 3) 68 | -11/Scrapyard | Entered Materials 309 | -10/Materials | Build established: Mutant 573 | -10/Materials | Discovered new exit (range 16) 843 | -10/Materials | Core integrity fell below 50% 932 | -10/Materials | Discovered new exit (range 14) 1038 | -10/Materials | Discovered new exit (range 6) 1158 | -10/Materials | Build established: Scavenger-Mutant 1175 | -10/Materials | Discovered new exit (range 6) 1213 | -10/Materials | Discovered new exit (range 9) 1279 | -10/Materials | Entered Mines 1287 | -10/Mines | Met a Derelict bent on vengeance 1290 | -10/Mines | Escorted by a lone wolf Derelict 1310 | -10/Mines | Learned location of Storage (-8) 1355 | -10/Mines | Found a damaged Exp. Sensor Array with a note attached 1451 | -10/Mines | Found a hidden stash of uninstalled traps 1482 | -10/Mines | Discovered new exit (range 10) 2109 | -10/Mines | Entered Subcaves 2109 | -10/Subcaves | Accompanied by 1 ally 2110 | -10/Subcaves | Approached by a straggling Scientist 2230 | -10/Subcaves | Scientist uncovered a shortcut to Scraptown 2236 | -10/Subcaves | Entered Scraptown 2236 | -8/Scraptown | Accompanied by 1 ally 2584 | -8/Scraptown | Build established: Mutant 2742 | -8/Scraptown | Discovered new exit (range 7) 2820 | -8/Scraptown | Visited Cyclists 2859 | -8/Scraptown | Visited CR-KLE's Repair Center 2969 | -8/Scraptown | Visited SPCMW 3012 | -8/Scraptown | Visited Fellowship of the Rings 3058 | -8/Scraptown | Visited The Evicted 3079 | -8/Scraptown | Visited UFD Registry 3079 | -8/Scraptown | Registered with UFD as "Armornuts" 3105 | -8/Scraptown | Visited Shadow of the Wyrm 3145 | -8/Scraptown | Visited CPS Storage 3410 | -8/Scraptown | Entered Cyclist Reading Room 3760 | -8/Scraptown | Visited Science Guys 3825 | -8/Scraptown | Visited Curators Association 3875 | -8/Scraptown | Visited LU-1G1's Boring Crew 4171 | -8/Scraptown | Visited DA-N13 Charitable Foundation 4178 | -8/Scraptown | Found DCF Scrap (26 items) 4305 | -8/Scraptown | Visited Research Penetration Think Tank 4337 | -8/Scraptown | Visited Abandonware Association 4359 | -8/Scraptown | Learned abandonware demo "OVRCLOCK.EXE" 4367 | -8/Scraptown | Learned abandonware demo "MELTYB.EXE" 4399 | -8/Scraptown | Visited Scrapoid Pod Storage 4424 | -8/Scraptown | Visited Junk Cannon Lab 4435 | -8/Scraptown | Found Prototype Special Weapon 4435 | -8/Scraptown | Identified Junk Cannon 4476 | -8/Scraptown | Visited Chapter 10 4572 | -8/Scraptown | Found Scrapoid Pod 4849 | -8/Scraptown | CR-KLE repaired 7 parts 5332 | -8/Scraptown | Found Scrap Suit 5388 | -8/Scraptown | Discovered new exit (range 5) 5721 | -8/Scraptown | Build established: Derelict-Mutant 6143 | -8/Scraptown | Entered Factory 6143 | -6/Factory | Accompanied by 1 ally 6143 | -6/Factory | Evolved 8 slots: Propulsion x4, Utility x4 6306 | -6/Factory | Identified exit to DSF 6454 | -6/Factory | Build established: Scavenger-Mutant 6750 | -6/Factory | Found Launcher Loader 8130 | -6/Factory | Spotted B-75 Beast 9111 | -6/Factory | Discovered new exit (range 14) 9137 | -6/Factory | Identified exit to Extension 9138 | -6/Factory | Entered Extension 9495 | -6/Extension | Lost 3 parts (3n) 9869 | -6/Extension | Lost 3 parts (2n1u) 10267 | -6/Extension | Lost 4 allies 10712 | -6/Extension | Rescued a captive Derelict 10714 | -6/Extension | Rescued a captive Derelict 10844 | -6/Extension | Rescued A7 10908 | -6/Extension | Build established: Commander-Mutant 11188 | -6/Extension | Disrupted transfer network 11244 | -6/Extension | Spotted B-75 Beast 11246 | -6/Extension | Spotted B-75 Beast 11248 | -6/Extension | Allies destroyed B-75 Beast 11269 | -6/Extension | Allies destroyed B-75 Beast 11299 | -6/Extension | Lost 3 allies 11488 | -6/Extension | Discovered new exit (range 22) 11488 | -6/Extension | Discovered new exit (range 22) 11531 | -6/Extension | Build established: Scavenger-Mutant 11620 | -6/Extension | Rescued a captive Derelict 11689 | -6/Extension | Rescued a captive Derelict 11690 | -6/Extension | Rescued a captive Derelict 11712 | -6/Extension | Energy Cycler disabled 11714 | -6/Extension | Rescued a captive Derelict 11715 | -6/Extension | Rescued a captive Derelict 11724 | -6/Extension | Rescued a captive Derelict 11873 | -6/Extension | Entered Cetus 11873 | -6/Cetus | Accompanied by 6 allies (A7) 11878 | -6/Cetus | Acquired a Cetus Manufacturing Module code from A7 11903 | -6/Cetus | Spotted Cetus Guard 11904 | -6/Cetus | Spotted Cetus Guard 11907 | -6/Cetus | Spotted Cetus Guard 11917 | -6/Cetus | Spotted Cetus Guard 11918 | -6/Cetus | Allies destroyed Cetus Guard 11931 | -6/Cetus | Destroyed Cetus Guard 11953 | -6/Cetus | Destroyed Cetus Guard 11956 | -6/Cetus | Lost 6 allies 11980 | -6/Cetus | Destroyed Cetus Guard 11997 | -6/Cetus | Lost 4 parts (3n1u) 12012 | -6/Cetus | Found Prototype Protection 12013 | -6/Cetus | Identified Med. Regenerative Plating 12017 | -6/Cetus | Extracted ID and sensor layout for unrecognized location from A7's data core 12052 | -6/Cetus | System corruption reached 10% 12205 | -6/Cetus | Discovered new exit (range 22) 12370 | -6/Cetus | Entered Archives 12562 | -6/Archives | Discovered new exit (range 22) 12594 | -6/Archives | Discovered new exit (range 22) 12667 | -6/Archives | Discovered new exit (range 20) 13256 | -6/Archives | Entered Factory 13256 | -5/Factory | Evolved 2 slots: Power x1, Utility x1 15229 | -5/Factory | System corruption reached 10% 15686 | -5/Factory | Identified exit to Upper Caves 15780 | -5/Factory | Identified exit to Garrison 15956 | -5/Factory | First assault squad dispatched 16014 | -5/Factory | Entered Upper Caves 16017 | -5/Upper Caves | Lost 6 parts (3n3u) 16040 | -5/Upper Caves | Found DCF Scrap (13 items) 16275 | -5/Upper Caves | Build established: Scavenger-Skirmisher 16406 | -5/Upper Caves | Learned 4 Factory zone layouts 17029 | -5/Upper Caves | Discovered new exit (range 11) 17073 | -5/Upper Caves | Identified exit to Upper Caves 17077 | -5/Upper Caves | Entered another Upper Caves area 17267 | -5/Upper Caves | Discovered new exit (range 3) 17837 | -5/Upper Caves | Learned Factory security intel 18123 | -5/Upper Caves | Discovered new exit (range 15) 18144 | -5/Upper Caves | Identified exit to Warlord 18182 | -5/Upper Caves | Entered Warlord 18236 | -5/Warlord | System corruption cleaned by Quarantine Array 18558 | -5/Warlord | Learned location of Quarantine (-3) 18559 | -5/Warlord | Learned 4 Access zone layouts 18559 | -5/Warlord | Learned 4 Testing zone layouts 18559 | -5/Warlord | Learned 4 Testing zone layouts 18561 | -5/Warlord | Learned Research security intel 18561 | -5/Warlord | Learned Testing security intel 18561 | -5/Warlord | Learned Armory fabricator intel 18561 | -5/Warlord | Learned Armory repair station intel 18943 | -5/Warlord | Visited the Vortex Lab 18949 | -5/Warlord | Warlord's base attacked by MAIN.C 18960 | -5/Warlord | Found Prototype Energy Gun 18962 | -5/Warlord | Identified Vortex Rail 18965 | -5/Warlord | Found Vortex Rail 19240 | -5/Warlord | Lost 4 allies 19274 | -5/Warlord | Build established: Scavenger-Mutant 19284 | -5/Warlord | Spotted B-75 Beast 19299 | -5/Warlord | Warlord forces counterattacked 19311 | -5/Warlord | Spotted B-86 Titan 19336 | -5/Warlord | Spotted Striker 19381 | -5/Warlord | Spotted B-86 Titan 19388 | -5/Warlord | Spotted B-75 Beast 19472 | -5/Warlord | Spotted B-75 Beast 19472 | -5/Warlord | Spotted B-86 Titan 19475 | -5/Warlord | Discovered new exit (range 20) 19512 | -5/Warlord | P-80 Master assimilated allied PH-AAE(b) 19516 | -5/Warlord | Crushed by falling debris 19518 | -5/Warlord | Core integrity fell below 50% 19534 | -5/Warlord | Lost 21 allies 19569 | -5/Warlord | Destroyed B-86 Titan 19624 | -5/Warlord | Warlord base infiltrated, sounded retreat 19642 | -5/Warlord | Spotted Executioner 19655 | -5/Warlord | Rebuked by Warlord 19749 | -5/Warlord | Spotted Striker 19759 | -5/Warlord | Spotted Executioner 19779 | -5/Warlord | Released all parts (9) 19807 | -5/Warlord | Lost 4 parts (1p1u2w) 19847 | -5/Warlord | Lost 10 allies 19869 | -5/Warlord | Spotted Striker 19882 | -5/Warlord | Lost 3 allies 19882 | -5/Warlord | Core integrity fell below 20% 19887 | -5/Warlord | Destroyed by Striker with Plasma Lance Last Messages --------------- 19875_ S-27 Virus destroyed. 19877_ Vortex penetrates Earth. 19878_ Penetrated by Slug. 19878_ Slug penetrates Earth. 19878_ Penetrated by Slug. 19880_ Vortex penetrates Striker. 19881_ Penetrated by Slug. 19882_ The unstable cave ceiling collapses. 19882_ Penetrated by Slug. 19883_ Vortex penetrates Earth. 19884_ The unstable cave ceiling collapses. 19884_ Unknown Engine crushed. 19884_ Arm. Treads destroyed. 19884_ Vortex Rail destroyed. 19885_ The unstable cave ceiling collapses. 19885_ HERF Cannon crushed. 19885_ Slug penetrates Earth. 19885_ Vortex Rail destroyed. 19885_ Slug penetrates Earth. 19886_ Dropped Huge Storage Unit. Map ----- +----------------------------------------------------+ | | | | | | | ?????????????????????????????????????????? | | ?????????????????????????????????????????? | | ?????????????????????????????????????????? | | ?????????????????????????????????????????? | | ?????????????????????????????????????????? | | ?????????????????????????????????????????? | | ?????????????????????????????????????????? | | ?????????????????????????????????????????? | | ?????????????????????????????????????????? | | ????????????????????????????????????#????? | | ??????????????????????????????????## ??##? | | ???????????????????###???????????# ?? ?? | | ??????????????????## ?????????## ### ? # | | ?????????????????## ?????????# # ## # | | ?????????????????# ????????## # %# | | ?????????????????# #??????## %< %" | | ?????????????????# ??????# ? | | ?????????????????# ##????# ! #"#? | | ??????????????????# =##???# !%# #?? | | ????????????????##### !=!###?# [[%#?? | | ????????????????# ; ![/[#### ==%%## #?? | | ????????????????#####;![=!=[#=##!!%# #?? | | ????????????????????# K@==%=g/%=/## #??? | | ????????????????????# % =%gs!h%%g=] ;;#?? | | ??????##???????????# =#%[h x = [ #?? | | ?????#""#??????????# # ## !=*%%#= = #? | | ?????#""#?????????# ### ![%=% = # #? | | ?????#""#????????# #?####!#[![=== ##? | | ?????#""#???????# #??# #%!=]*%[##! #?? | | ?????#""#??????# #??## #=!#= ==%% ##? | | ######""#####??##???# # ## # ! %=* # #? | | # "" ="########## ## #![*=%## ##? | | # "" *[ """ " " ## # = [= ! #?? | | " ""*/[[ !=% #/# # # * ##?? | | /^ %=![%[%! %==*==#%# !##??? | | /^= *^%%== % =%![=% %] ##* #??? | | /^!^[^[=%* % %!=% =[ ! # #??? | | /^ ^=%!%[|% % *% %% % ## #??? | | " =""!*% % [ % =## */ ### "#?? | | " ""!*/* = ! # = = ### #?? | | " "" ## # # #[= " " #?? | | ######""# ########## #### " #?? | | #????#"""###????????## ##?? ##" *= #?? | | #????#""# #??????????# #?? ### %%= ##?? | | ?????#""###??????????###?# ##?# [ #??? | | ?????#""#???????????????? ???#" "#??? | | ?????#""#???????????????# ????"" ##??? | +----------------------------------------------------+ Best States ------------- Heat Dissipation 75 Energy Generation 39 Energy Capacity 935 Matter Stores 300 Matter Capacity 300 Sight Range 22 Robot Scan Range 16 Terrain Scan Density 10 Jamming Range 14 Base Temperature (-) 100 Armor Coverage 900 Utility Shielding 66 Evasion (%) 55 Targeting Accuracy 8 Target Analysis 6 Recoil Reduction 6 Matter Filtering 30 Particle Charging 20 Offensive Hacking 14 Item Schematics ----------------- Lgt. Particle Reactor | -5/Factory | Hacked Robot Schematics ------------------ None Fabricated ------------ Nothing Repaired ---------- Nothing Alien Tech Used ----------------- None Achievements -------------- None Challenges ------------ None Game ------ Seed ChromaticMiningLaser Manual? 0 Play Time 04:40:18 Cumulative 131.5 hours Start 2025.09.15 @ 12:47:54 End 2025.09.19 @ 14:38:37 Sessions 23 Manual Loads 0 Difficulty Rogue Special Mode None Game No. 66 Rogue 62 Adventurer 1 Explorer 3 Win Type - Total 4 Types 3/1/0/0/0/0/0/0/0/0 Lore% 61 Gallery% 62 Achievement% 57 Wizard Run 0 Options --------- Layout 2 ASCII 0 Keyboard 1 Movement Numpad Keybinds 0 Fullscreen 1 Font 32/SmallcapsGlow Map View 50x44 Zoom Use 0% Tactical HUD 1 Map Filters NONE Filters NONE Steam 1 RUN: 98ae1359-e317-4b20-b079-e1b0a5477591